Cogmind - Beta 16 @@@ ROGUE MODE // 2026.01.05 @ 16:07:15 Player: c4-BRK Result: Self-destructed Performance ------------- Evolutions (1) 500 Regions Visited (2) 400 Robots Destroyed (5) 25 Value Destroyed (159) 159 Prototype IDs (0) 0 Alien Tech Used (0) 0 Bonus (200) 200 TOTAL SCORE: 1284 Bonus ------- Pacifist 200 Cogmind --------- Core Integrity 322/400 Matter 177/300 Energy 265/265 System Corruption 0% Temperature Cool (23) Movement Rolling (90) Location -9/Materials Parts ------- > --- POWER (2) -------- Reinforced Ion Engine > --- PROPULSION (2) --- Wheel Compact Wheel > --- UTILITY (3) ------ Medium Storage Unit > --- WEAPON (2) ------- Autogun > --- INVENTORY (10) --- (None) Peak State ------------ > --- POWER ------------ Reinforced Ion Engine Reinforced Ion Engine > --- PROPULSION ------- Wheel Compact Wheel > --- UTILITY ---------- Heat Sink Medium Storage Unit > --- WEAPON ----------- Autogun Autogun > --- INVENTORY -------- (None) [Rating: 12] Favorites ----------- Power Reinforced Ion Engine Engine Reinforced Ion Engine Propulsion Compact Wheel Wheel Compact Wheel Utility Medium Storage Unit Device Heat Sink Storage Medium Storage Unit Weapon EM Pulse Gun Energy Gun EM Pulse Gun Ballistic Gun Autogun Build | -11 -10 -9 ------- Run | Yrd Mat Mat Slots Evolved 2 | . . 2 Power 1 | . . 1 Propulsion . | . . . Utility 1 | . . 1 Weapon . | . . . Parts Attached 12 | 6 2 4 Power 3 | 1 1 1 Engine 3 | 1 1 1 Core . | . . . Reactor . | . . . Propulsion 2 | 2 . . Treads . | . . . Leg . | . . . Wheel 2 | 2 . . Hover . | . . . Flight . | . . . Utility 3 | 1 1 1 Device 1 | . . 1 Storage 2 | 1 1 . Processor . | . . . Hackware . | . . . Protection . | . . . Artifact . | . . . Weapon 4 | 2 . 2 Energy Gun 2 | 2 . . Energy Cannon . | . . . Ballistic Gun 2 | . . 2 Ballistic Cannon . | . . . Launcher . | . . . Special Weapon . | . . . Impact Weapon . | . . . Slashing Weapon . | . . . Piercing Weapon . | . . . Special Melee Weapon . | . . . Unidentified Prototypes . | . . . Parts Lost 1 | . . 1 Power . | . . . Propulsion . | . . . Utility 1 | . . 1 Weapon . | . . . Highest Loss Streak 1 | . . 1 To Critical Strikes . | . . . Average Backups . | . . . Power . | . . . Propulsion . | . . . Utility . | . . . Weapon . | . . . Tool/Special . | . . . Unused Backups . | . . . Power . | . . . Propulsion . | . . . Utility . | . . . Weapon . | . . . Tool/Special . | . . . Average Slot Usage (%) 78 | . 85 73 Engine 14 | . 14 15 Wheel 24 | . 28 22 Device 2 | . . 4 Storage 12 | . 14 11 Energy Gun 17 | . 28 11 Ballistic Gun 6 | . . 10 Peak Build Rating 12 | 6 7 12 Average Rating 7 | 3 6 9 On Entrance 4 | . 6 7 Avg Prop Armor Cover (%) . | . . . Naked Turns . | . . . Heaviest Build 37 | 14 24 37 Greatest Support 26 | 26 26 26 Greatest Overweight (x) 1 | 1 . 1 Average Overweight (x) . | . . . Largest Inventory Capacity 10 | 8 10 10 Average Capacity 8 | 6 8 10 Most Carried 3 | 2 2 3 Average Carried . | . . . Final Capacity 10 | 8 10 10 Final Carried 1 | . 1 . Class Distribution -------------------- 100% | Mutant Dominant Class ---------------- Mutant | -10/Materials Mutant | -9/Materials Resources | -11 -10 -9 ----------- Run | Yrd Mat Mat Matter Collected 280 | 191 69 20 Remotely . | . . . Salvage Created 168 | . . 168 Parts 13 | . . 13 Haulers Intercepted . | . . . Recyclers Shooed . | . . . Parts Field Recycled . | . . . Retrieved Matter . | . . . Parts Self-Destructed . | . . . Prevented . | . . . Parts Restored . | . . . Kills | -11 -10 -9 ------- Run | Yrd Mat Mat Combat Hostiles Destroyed 5 | . . 5 Guns 5 | . . 5 Classes Destroyed 2 | . . 2 Swarmer 1 | . . 1 Grunt 4 | . . 4 Best Kill Streak 2 | . . 2 Combat Bots Only 2 | . . 2 Max Kills in Single Turn 1 | . . 1 Gunslinging . | . . . Exploded . | . . . Melee . | . . . Uniques/NPCs Destroyed . | . . . Combat | -11 -10 -9 -------- Run | Yrd Mat Mat Hostile Shots Fired 36 | . . 36 Missed 9 | . . 9 Hits 27 | . . 27 Melee 2 | . . 2 Projectile 25 | . . 25 Critical Strikes 3 | . . 3 Damage Taken 353 | . . 353 Core 78 | . . 78 Absorbed by Shields . | . . . Core Remaining (%) 100 | 100 100 . Volleys Fired 17 | . . 17 Largest 2 | . . 2 Hottest 80 | . . 80 Shots Fired 34 | . . 34 Gun 34 | . . 34 Cannon . | . . . Launcher . | . . . Special . | . . . Kinetic 22 | . . 22 Thermal . | . . . Explosive . | . . . Electromagnetic 12 | . . 12 Robot Hit Streak 6 | . . 6 Robot Miss Streak 3 | . . 3 Penetration Max . | . . . Secondary Targets 1 | . . 1 Max Gunslinging Chain 1 | . . 1 Shots Hit Robots 19 | . . 19 Core Hits 11 | . . 11 Critical Kills . | . . . Critical Parts Destroyed . | . . . Critical Strikes . | . . . Melee Attacks . | . . . Impact . | . . . Slashing . | . . . Piercing . | . . . Sneak Attacks . | . . . Combat Hostiles . | . . . Follow-up Attacks . | . . . Damage Inflicted 276 | . . 276 Guns 276 | . . 276 Cannons . | . . . Explosions . | . . . Melee . | . . . Ramming . | . . . Kinetic 180 | . . 180 Thermal . | . . . Explosive . | . . . Electromagnetic 96 | . . 96 Impact . | . . . Slashing . | . . . Piercing . | . . . Highest Corruption . | . . . Average Corruption . | . . . Corruption Purged . | . . . Corruption Blocked . | . . . Overload Shots . | . . . Overflow Damage . | . . . Projectiles . | . . . Explosions . | . . . Melee . | . . . Knockbacks . | . . . Impact . | . . . Kinetic . | . . . Secondary . | . . . Self-Inflicted Damage . | . . . Shots . | . . . Rammed . | . . . Targets Rammed . | . . . Kicked . | . . . Crushed . | . . . Highest Temperature 72 | . . 72 Average Temperature 27 | . . 27 Received Heat Transfer 144 | . . 144 Siege Activations . | . . . Martial Activations . | . . . Shielding Activations . | . . . Robots Disrupted . | . . . Combat Hostiles . | . . . Robots Corrupted . | . . . Combat Hostiles . | . . . Parts Fried 1 | . . 1 Impact Corruptions . | . . . Robots Melted . | . . . Combat Hostiles . | . . . Parts Melted . | . . . Heat Transferred . | . . . Parts Sabotaged . | . . . Parts Stolen . | . . . Parts Stripped . | . . . Power Chain Reactions . | . . . Alert | -11 -10 -9 ------- Run | Yrd Mat Mat Maximum Alert Level . | . . . Low Security (%) 100 | 100 100 100 Level 1 . | . . . Level 2 . | . . . Level 3 . | . . . Level 4 . | . . . Level 5 . | . . . High Security . | . . . Max Security . | . . . Peak Influence 60 | . 19 60 Initial . | . . . Average 19 | . 5 36 Influence Increases 139 | . 29 110 Destroy 0b10 Robot/C 100 | . . 100 Destroy Leader 10 | . . 10 Successful Hack 14 | . 14 . Lose Combat Pursuer 15 | . 15 . Influence Decreases 99 | . 29 70 Time Decay 89 | . 29 60 Lost Part 10 | . . 10 Squads Dispatched 1 | . . 1 Investigation . | . . . Extermination . | . . . Reinforcement 1 | . . 1 Assault . | . . . Garrison . | . . . Intercept . | . . . Searches Triggered . | . . . Construction Impeded . | . . . Haulers Reinforced . | . . . Active Scanning Responses . | . . . Cargo Convoy Interrupts . | . . . Stealth | -11 -10 -9 --------- Run | Yrd Mat Mat Distress Signals 1 | . 1 . Communications Jammed . | . . . Distress Signals . | . . . Times Spotted 12 | . 1 11 Peak Tracking Total 6 | . 3 6 Tactical Retreats 1 | . 1 . Traps | -11 -10 -9 ------- Run | Yrd Mat Mat Traps Triggered . | . . . Indirectly . | . . . Trap Hack Attempts . | . . . Triggered . | . . . Disarmed . | . . . Reprogrammed . | . . . Reused . | . . . Traps Extracted . | . . . Installed . | . . . Triggered . | . . . Machines | -11 -10 -9 ---------- Run | Yrd Mat Mat Machines Disabled . | . . . Max in Single Turn . | . . . Machines Repaired . | . . . Machines Dismantled . | . . . Machines Sabotaged . | . . . Overloaded Fab Kills . | . . . Hacking | -11 -10 -9 --------- Run | Yrd Mat Mat Machines Accessed 1 | . 1 . Terminals 1 | . 1 . Fabricators . | . . . Repair Stations . | . . . Recycling Units . | . . . Scanalyzers . | . . . Garrison Access . | . . . Total Hacks 2 | . 2 . Successful 1 | . 1 . Failed 1 | . 1 . Catastrophic 1 | . 1 . Database Lockouts . | . . . Manual 1 | . 1 . Terminals 2 | . 2 . Fabricators . | . . . Repair Stations . | . . . Recycling Units . | . . . Scanalyzers . | . . . Garrison Access . | . . . Terminal Hacks 1 | . 1 . Zone Layout 1 | . 1 . Fabricator Hacks . | . . . Repair Station Hacks . | . . . Recycling Unit Hacks . | . . . Scanalyzer . | . . . Garrison Access Hacks . | . . . Unauthorized Hacks . | . . . Terminals . | . . . Fabricators . | . . . Repair Stations . | . . . Recycling Units . | . . . Scanalyzers . | . . . Garrison Access . | . . . Data Cores Recovered . | . . . Used . | . . . Hacking Detections 1 | . 1 . Full Trace Events 1 | . 1 . Feedback Events . | . . . Feedback Blocked . | . . . Robot Schematics Acquired . | . . . Robots Built . | . . . Authchips . | . . . Time . | . . . Total Robot Build Rating . | . . . Part Schematics Acquired . | . . . Parts Built . | . . . Authchips . | . . . Time . | . . . Total Part Build Rating . | . . . Part Studies Acquired . | . . . Parts Repaired . | . . . Time . | . . . Parts Recycled . | . . . Recycled Matter . | . . . Retrieved Matter . | . . . Retrieved Components . | . . . Parts Scanalyzed . | . . . Part Schematics Acquired . | . . . Parts Damaged . | . . . Bothacking | -11 -10 -9 ------------ Run | Yrd Mat Mat Used RIF Installer . | . . . Robots Hacked . | . . . Non-combat . | . . . Combat . | . . . Robot Hacks Applied . | . . . Relay Couplers Released . | . . . Fabnet Peak Effective % . | . . . Robots Rewired . | . . . Allies Hacked . | . . . Hacks Repelled . | . . . Allies | -11 -10 -9 -------- Run | Yrd Mat Mat Total Allies . | . . . Largest Group . | . . . Highest-Rated Group . | . . . Highest-Rated Ally . | . . . Total Orders . | . . . Ally Attacks . | . . . Total Damage . | . . . Kills . | . . . Allies Corrupted . | . . . Allies Melted . | . . . Intel | -11 -10 -9 ------- Run | Yrd Mat Mat Active Infowar (turns) . | . . . Robot Analysis Total . | . . . Derelict Logs Recovered . | . . . Drone Launches . | . . . Drone Recoveries . | . . . Exploration | -11 -10 -9 ------------- Run | Yrd Mat Mat Turns Passed 310 | 62 100 148 Spaces Moved 247 | 55 104 88 Core 18 | 18 . . Treads . | . . . Legs . | . . . Wheels 229 | 37 104 88 Hover . | . . . Flight . | . . . Fastest Speed 50 | 50 90 90 Average Speed 92 | 91 90 95 Slowest Speed 105 | 100 90 105 Overloaded Moves . | . . . Propulsion Burnouts . | . . . Robots Hopped . | . . . Potential Cave-ins . | . . . Cave-ins Triggered . | . . . Exploration Rate (%) 14 | 5 26 13 Regions Visited 2 Branch Regions . Pre-discovered Areas . | . . . Known Exits Taken . | . . . Unknown Exits Taken 2 | 1 1 . Scrap Searched . | . . . Spaces Dug . | . . . Terrain Destroyed . | . . . Melee . | . . . Projectile . | . . . AOE . | . . . Terrain Rammed . | . . . Walls Destroyed . | . . . Machines Disabled . | . . . Actions | -11 -10 -9 --------- Run | Yrd Mat Mat Total 297 | 66 110 121 Wait 7 | . . 7 Move 245 | 54 103 88 Hop . | . . . Pick Up 12 | 6 3 3 Fast Attach . | . . . Attach 8 | 6 . 2 Detach . | . . . Swap 4 | . 2 2 Drop 4 | . 2 2 Fire 17 | . . 17 Melee . | . . . Ram . | . . . Kick . | . . . Crush . | . . . Escape Stasis . | . . . Rewire . | . . . Trap . | . . . Miscellaneous . | . . . Route ------- -11/Scrapyard -10/Materials -9/Materials (discovered 1 exit: [*Mat]) History --------- Turn | Location | Event 12 | -11/Scrapyard | Discovered new exit (range 14) 63 | -11/Scrapyard | Entered Materials 140 | -10/Materials | Discovered new exit (range 16) 163 | -10/Materials | Entered another Materials area 163 | -9/Materials | Evolved 2 slots: Power x1, Utility x1 282 | -9/Materials | Discovered new exit (range 4) 305 | -9/Materials | Build established: Mutant 311 | -9/Materials | Self-destructed Last Messages --------------- G-47 Trooper destroyed. K-01 Serf collects debris. R-06 Scavenger collects Aluminum Leg. Acquired Autogun. Dropped EM Pulse Gun. Acquired Heat Sink. R-06 Scavenger collects EM Pulse Gun. G-34 Mercenary destroyed. EXIT=FOUND ALERT: Hostiles spotted, dispatching reinforcements to Terminal M007. S-10 Pest destroyed. R-06 Scavenger collects Heat Sink. R-06 Scavenger collects Aluminum Leg. R-06 Scavenger collects Ion Engine. Critical hit (Burn: +37). Rnf. Ion Engine severed. R-06 Scavenger collects Aluminum Leg. Heat Sink destroyed. Autogun severed. Map ----- +----------------------------------------------------+ | ?????????????????????????????????????????? | | ?????????????????????????????????????????? | | ?????????????????????????????????????????? | | ?????????????????????????????????????????? | | ?????????????????????????????????????????? | | ?????????????????????????????????????????? | | ??????????????? ????????????????????????? | | ??????????????? ????????????????????????? | | ??????????????# ????????????????????????? | | ??????????????# ????????????????????????? | | ??????????????# ????????????????????????? | | ??????????????# ????????????????????????? | | ??????????????# ????????????????????????? | | ??????????????# #???????????????????????? | | ??????????????# #???????????????????????? | | ??????????????# %#???????????????????????? | | ??????????????#r #?????????? ???????????? | | ???????????#### ######### ??????????? | | ???????????# ??????????? | | ???????????? < Y ???????????? | | ?????????????? = ????????????????? | | ??????#######??# [g#?????????????????????? | | ??????# ?#g *#?????????????????????? | | ??????# #s s#?????????????????????? | | ??????# ;[l #?????????????????????? | | ??????# # @ #?????????????????????? | | ??????# # #?????????????????????? | | ??????# + #?????????????????????? | | ??????# ## ##?????####???????????## | | ??????# ?# #??????+ ???????????? | | ??????# ??# #??????# ########?????# | | ??????###########+######## # #?????# | | ??????????????# + + #?????# | | ??????????????# """ # # [[[ #?????# | | ??????????????# """ # # [[ ####### | | ??????????????# """ + # [[[ + | | ??????????????# | #### # ######## | | ??????????????#########??# ########??????? | | ?????????????????????????# #?????????????? | | ?????????????????????????# #?????????????? | | ?????????????????????????# #?????????????? | | ?????????????????????????# #?????????????? | | ?????????????????????????? ??????????????? | | ?????????????????????????? ??????????????? | | ?????????????????????????? ?????????????## | | ?????????????????????????? ?????????????+ | | ?????????????????????????? ?????????????## | | ?????????????????????????? ???#########?## | | ?????????????????????????? ???# # | | ??????????????????????????????# # | +----------------------------------------------------+ Best States ------------- Heat Dissipation 38 Energy Generation 19 Energy Capacity 430 Matter Stores 300 Matter Capacity 300 Sight Range 16 Terrain Scan Density 10 Evasion (%) 42 Item Schematics ----------------- None Robot Schematics ------------------ None Fabricated ------------ Nothing Repaired ---------- Nothing Studied --------- None Alien Tech Used ----------------- None Achievements -------------- DATA ERROR: Steam Global Achievement% I Have A Map? Challenges ------------ None Game ------ Seed GunMeleeInterface Manual? 0 Play Time 00:07:42 Cumulative 29.2 hours Start 2026.01.05 @ 16:00:21 End 2026.01.05 @ 16:07:15 Sessions 1 Manual Loads 0 Difficulty Rogue Special Mode None Game No. 54 Rogue 33 Adventurer 21 Explorer 0 Win Type - Total 1 Types 0/0/0/0/0/0/0/1/0/0 Lore% 53 Gallery% 33 Achievement% 22 Wizard Run 0 Options --------- Layout 1 ASCII 0 Keyboard 0 Movement Mouse Keybinds 0 Fullscreen 2 Font 24/Smallcaps Map View 50x35 Zoom Use 0% Tactical HUD 0 Map Filters NONE Filters NONE Steam 1 RUN: 0fcecb86-fd0c-4f15-894c-63d54bb3c34a